[Event "Czech Extraliga 2024-25"]
[Site "Czechia"]
[Date "2024.11.02"]
[Round "1.4"]
[White "Hollan, Martin"]
[Black "Janik, Igor"]
[Result "0-1"]
[ECO "B12"]
[WhiteElo "2347"]
[BlackElo "2513"]
[Annotator "TA"]
[PlyCount "110"]
[EventDate "2024.09.12"]
[EventType "team-tourn"]
[EventCountry "CZE"]
[SourceTitle "playchess.com"]
[Source "ChessBase"]
[SourceQuality "1"]
[TimeControl "40/5400+30:1800+30"]

{[%evp 22,110,0,6,6,11,9,-3,17,0,0,0,0,0,22,24,24,0,16,0,0,0,0,0,0,0,0,0,0,0,0,0,0,0,0,0,-10,-45,-41,-92,-123,-111,-103,-228,-221,-228,-173,-172,-145,-334,-332,-333,-334,-334,-317,-322,-308,-338,-293,-422,-322,-369,-323,-434,-420,-465,-445,-663,-378,-668,-659,-668,-656,-637,-639,-641,-624,-639,-645,-669,-269,-675,-675,-708,-662,-675,-636,-636,-595,-586,-550]} 1. e4 {[%emt 0:00:03]} c6 {[%emt 0:01:50]} 2. d4 {[%emt 0:00:07]} d5 {[%emt 0:00:04]} 3. e5 {[%emt 0:00:04]} Bf5 {[%emt 0:00:15]} 4. h4 {[%emt 0:00:08]} h5 {[%emt 0:00:48]} 5. Bd3 {[%emt 0:00:08]} Qd7 {[%emt 0:00:30]} 6. Ne2 {[%emt 0:01:13] B12: Caro-Kann: Advance Variation.} Bxd3 {[%emt 0:02:05]} 7. Qxd3 {[%emt 0:00:27]} e6 {[%emt 0:00:01]} 8. Nd2 {[%emt 0:01:15]} c5 {[%emt 0:00:31]} 9. Nf3 {[%emt 0:02:53]} cxd4 {[%emt 0:02:45]} 10. Nexd4 {[%emt 0:00:43]} Nc6 {[%emt 0:00:12]} 11. O-O {[%emt 0:01:13]} Bc5 {[%emt 0:00:54]} 12. Nxc6 {[%emt 0:14:42]} bxc6 $146 {[%emt 0:02:43]} ({Predecessor:} 12... Qxc6 13. Bg5 Ne7 14. Bxe7 Bxe7 15. c3 O-O 16. Nd4 Qb6 17. Qe2 g6 18. g3 Kg7 {½-½ Paveto,K (2451)-Krysa,L (2516) ARG-ch 95th Villa Martelli 2021 (4)}) 13. c4 {[%emt 0:02:28]} Ne7 {[%emt 0:02:52]} 14. Bg5 {[%emt 0:01:28]} Nf5 {[%emt 0:09:19]} 15. cxd5 {[%emt 0:04:48]} cxd5 {[%emt 0:01:51]} 16. Rac1 {[%emt 0:01:31]} Be7 {[%emt 0:02:29]} 17. Bxe7 {[%emt 0:09:29]} Qxe7 {[%emt 0:02:01]} 18. Qb5+ {[%emt 0:03:48]} Qd7 {[%emt 0:01:18]} 19. Qb4 {[%emt 0:07:16]} Ne7 {[%emt 0:02:42]} 20. Rc2 {[%emt 0:04:15]} O-O {[%emt 0:00:59]} 21. Rfc1 {[%emt 0:00:16]} Rfc8 {[%emt 0:02:26]} 22. Rxc8+ {[%emt 0:11:06]} Rxc8 {[%emt 0:03:17]} 23. Rxc8+ {[%emt 0:01:14]} Nxc8 {[%emt 0:00:02]} 24. Qc5 {[%emt 0:01:07]} Ne7 {[%emt 0:03:14]} 25. b3 {[%emt 0:12:08]} Nf5 {[%emt 0:01:24]} 26. Kf1 {[%emt 0:01:15]} Qb7 {[%emt 0:02:11]} 27. Ke1 {[%emt 0:03:26]} Qa6 {[%emt 0:02:03]} 28. Qc2 {[%emt 0:02:59]} Qa5+ {[%emt 0:01:58]} 29. Kd1 {[%emt 0:01:31]} Qb5 {[%emt 0:01:03]} 30. Qe2 {[%emt 0:02:55]} (30. Qc8+ $15 Kh7 31. Qc2) 30... Qb4 $17 {[%emt 0:01:12]} 31. Qd2 {[%emt 0:03:24]} Qe4 {[%emt 0:02:06]} 32. Qc1 {[%emt 0:00:51] [#]} (32. Qa5 $17 Qd3+ (32... Nxh4 $2 33. Qd8+ Kh7 34. Ng5+ Kh6 35. Nxe4 $18) 33. Ke1) 32... Qd3+ $1 $19 {[%emt 0:01:57]} (32... Nxh4 $2 33. Qc8+ Kh7 34. Ng5+ Kg6 35. Nxe4 $18) 33. Ke1 {[%emt 0:00:44]} Nd4 {[%emt 0:05:21]} 34. Nxd4 {[%emt 0:03:15]} Qxd4 {[%emt 0:00:08]} 35. Qe3 $2 {[%emt 0:01:08]} (35. Qc8+ Kh7 36. Qc2+ g6) (35. g3 $17) 35... Qa1+ $19 {[%emt 0:00:09]} (35... Qxh4 36. g3 Qb4+ 37. Ke2 $19) 36. Kd2 {[%emt 0:01:48]} Qxa2+ {[%emt 0:00:37]} 37. Kc1 {[%emt 0:01:12]} Qa1+ {[%emt 0:02:27]} 38. Kc2 {[%emt 0:00:06]} a6 {[%emt 0:00:27]} 39. g3 {[%emt 0:00:38]} g6 {[%emt 0:00:46]} 40. f4 {[%emt 0:00:54]} (40. Kd2 $142) 40... Qa2+ $19 {[%emt 0:00:10]} 41. Kc3 {[%emt 0:04:15]} Qa5+ {[%emt 0:00:13]} 42. Kb2 {[%emt 0:02:12]} Qb4 {[%emt 0:00:09]} 43. Qa7 {[%emt 0:02:28]} a5 {[%emt 0:00:27]} 44. Qd7 {[%emt 0:06:42]} (44. f5 $142 gxf5 (44... exf5 45. Qa8+ Kg7 46. Qxd5 $19) 45. Qe3) 44... Qb6 {[%emt 0:01:25]} 45. Ka2 $2 {[%emt 0:08:26]} (45. Qe8+ Kg7 46. Qe7) 45... Qf2+ $19 {[%emt 0:00:09]} 46. Ka3 {[%emt 0:00:07]} Qc5+ {[%emt 0:00:03]} ({Stronger than} 46... Qxg3 47. Qd8+ Kg7 (47... Kh7 48. Qf6 $11) 48. Qf6+ Kg8 49. Qd8+ Kg7 (49... Kh7 50. Qf6 $11) 50. Qf6+ Kg8 51. Qd8+ $11) 47. Kb2 {[%emt 0:01:21]} Kg7 {[%emt 0:01:08]} 48. Qd8 {[%emt 0:00:29]} Qd4+ {[%emt 0:00:05]} 49. Ka2 {[%emt 0:02:08] [#]} Qd2+ $1 {[%emt 0:00:05]} 50. Kb1 {[%emt 0:02:55]} Qc3 {[%emt 0:03:38]} (50... Qe1+ $142 51. Kb2 Qxg3) 51. Ka2 $2 {[%emt 0:00:41]} (51. Qf6+ Kg8 52. Qd8+ Kh7 53. Qe7 Qxb3+ 54. Kc1) 51... Qxg3 $19 {[%emt 0:00:16]} 52. Qf6+ {[%emt 0:01:52]} Kg8 {[%emt 0:00:02]} 53. Qd8+ {[%emt 0:00:10]} Kh7 {[%emt 0:00:01]} 54. Qf6 {[%emt 0:01:20]} Qf2+ {[%emt 0:00:05]} 55. Ka3 {[%emt 0:01:42]} Qc5+ {[%emt 0:00:06]} 0-1

[Event "Czech Extraliga 2024-25"]
[Site "Czechia"]
[Date "2024.11.02"]
[Round "1.5"]
[White "Zilka, Stepan"]
[Black "Haba, Petr"]
[Result "1/2-1/2"]
[ECO "C42"]
[WhiteElo "2539"]
[BlackElo "2425"]
[Annotator "TA"]
[PlyCount "57"]
[EventDate "2024.09.12"]
[EventType "team-tourn"]
[EventCountry "CZE"]
[SourceTitle "playchess.com"]
[Source "ChessBase"]
[SourceQuality "1"]
[TimeControl "40/5400+30:1800+30"]

{[%evp 17,57,21,27,26,29,38,10,13,35,21,23,6,12,8,13,18,20,9,14,9,18,15,15,5,21,7,18,19,20,11,40,43,37,47,34,0,0,0,0,0,21,0]} 1. e4 {[%emt 0:00:06]} e5 {[%emt 0:00:20]} 2. Nf3 {[%emt 0:00:16]} Nf6 {[%emt 0:00:17]} 3. Nxe5 {[%emt 0:01:36]} d6 {[%emt 0:00:05][%cal Bd7d6,Bd6d5][%mdl 32]} 4. Nf3 {[%emt 0:00:05]} Nxe4 {[%emt 0:00:14]} 5. d4 {[%emt 0:00:06]} d5 {[%emt 0:00:09]} 6. Bd3 {[%emt 0:00:11]} Bf5 {[%emt 0:00:19]} 7. O-O {[%emt 0:00:49]} Be7 {[%emt 0:00:16]} 8. Re1 {[%emt 0:02:13]} O-O {[%emt 0:00:31]} 9. c4 {[%emt 0:02:21]} Nc6 {[%emt 0:01:57]} 10. cxd5 {[%emt 0:06:06]} Qxd5 {[%emt 0:00:09]} 11. Nc3 {[%emt 0:00:04]} Nxc3 {[%emt 0:00:08]} 12. bxc3 {[%emt 0:00:04]} Bxd3 {[%emt 0:00:07]} 13. Qxd3 {[%emt 0:00:03]} Rae8 {[%emt 0:03:03]} 14. h3 {[%emt 0:10:49]} h6 {[%emt 0:04:42]} 15. Bd2 {[%emt 0:10:27]} Qd7 {[%emt 0:07:54]} 16. Qb5 {[%emt 0:06:31]} b6 {[%emt 0:05:54]} 17. a4 {[%emt 0:04:57]} Bd6 {[%emt 0:09:42]} 18. c4 {[%emt 0:00:05]} Rxe1+ {[%emt 0:09:10]} 19. Rxe1 {[%emt 0:00:41]} Rd8 {[%emt 0:00:22]} 20. Bc3 {[%emt 0:07:20]} Nb8 {[%emt 0:11:32]} 21. Ne5 {[%emt 0:05:27]} Bxe5 {[%emt 0:05:10]} 22. Qxe5 {[%emt 0:02:48]} Nc6 {[%emt 0:10:28][%cal Bb8c6,Bc6e7,Be7g6][%mdl 32]} 23. Qf4 {[%emt 0:00:21] [#] Black must now prevent d5.} Ne7 {[%emt 0:00:34][%cal Oe7g6]} (23... Nxd4 $2 {perishes.} 24. Bxd4 f6 (24... Qxd4 $2 25. Re8+ Rxe8 26. Qxd4 $18) 25. Be3 $18) 24. d5 {[%emt 0:01:15]} Ng6 {[%emt 0:01:17] Prevents Qe5.} 25. Qd4 {[%emt 0:02:30][%csl Gc3][%cal Rd4g7]} f6 {[%emt 0:00:05][%cal Od8e8]} 26. Re3 {[%emt 0:05:52]} (26. Qd3 $5 Kf7 27. a5 $16) 26... Re8 {[%emt 0:04:23] Dodges Qe4. The position is equal.} 27. a5 {[%emt 0:08:14]} Rxe3 {[%emt 0:01:58]} 28. Qxe3 {[%emt 0:00:32]} Ne7 {[%emt 0:04:24]} 29. a6 {[%emt 0:04:39] Weighted Error Value: White=0.06 (flawless) /Black=0.05 (flawless) .  Inaccurate:     	White=1     	---        OK:         	White=7     	Black=9      Best:        	---       	Black=1} 1/2-1/2

[Event "Czech Extraliga 2024-25"]
[Site "Czechia"]
[Date "2024.11.02"]
[Round "1.5"]
[White "Bernasek, Jan"]
[Black "Zwardon, Vojtech"]
[Result "1-0"]
[ECO "E21"]
[WhiteElo "2496"]
[BlackElo "2446"]
[Annotator "TA"]
[PlyCount "111"]
[EventDate "2024.09.12"]
[EventType "team-tourn"]
[EventCountry "CZE"]
[SourceTitle "playchess.com"]
[Source "ChessBase"]
[SourceQuality "1"]
[TimeControl "40/5400+30:1800+30"]

{[%evp 17,111,22,20,33,62,74,50,58,64,57,58,64,66,23,19,20,24,19,16,17,11,8,6,6,51,8,12,8,8,17,19,19,18,8,24,20,22,18,20,11,60,47,61,49,68,68,74,70,73,63,59,71,62,35,67,66,81,79,80,87,80,68,91,89,82,72,87,93,110,105,131,97,101,83,226,220,227,227,227,227,232,227,243,227,227,218,214,212,213,203,208,203,227,219,1062,1008]} 1. d4 Nf6 2. c4 e6 3. Nc3 Bb4 4. Nf3 O-O 5. Bg5 c5 6. Rc1 cxd4 {E21: Nimzo-Indian: 4 Nf3.} 7. Nxd4 h6 8. Bh4 Nc6 9. e3 Be7 {was the old line (9...d5).} 10. Be2 d6 11. O-O a6 12. Qd2 Bd7 13. Rfd1 Nxd4 $146 ({Predecessor:} 13... Ne5 14. Bg3 Rc8 15. b3 Qc7 16. Nf3 Qb8 17. Qd4 Nc6 18. Qd2 Ne5 19. Qd4 Nc6 20. Qd2 {½-½ Vitier Vazquez,C (2375)-Yanes Canizares,A (2283) Giraldilla de La Habana tt 2018 (8.1)}) 14. Qxd4 Bc6 15. Bxf6 Bxf6 16. Qxd6 Qa5 17. b4 Qa3 18. b5 axb5 19. cxb5 (19. Qxa3 {simplifies} Rxa3 20. cxb5 Bxc3 21. bxc6 bxc6 22. Bc4) 19... Bxc3 20. bxc6 (20. Qxa3 {simplifies} Rxa3 21. bxc6 bxc6 22. Bc4) 20... bxc6 21. Bc4 Bb2 22. Rc2 c5 23. g3 Bf6 24. Rb1 Rfd8 25. Qb6 Qa5 26. Qxa5 Rxa5 27. Rb7 Kf8 28. Bb5 Be7 (28... Ra3 $11) 29. a4 $14 Raa8 30. Kf1 h5 31. Ke2 h4 32. gxh4 g6 33. Rc4 Rab8 34. Rxb8 Rxb8 35. Rc2 Ra8 36. Ra2 Ra5 37. h5 gxh5 38. Kd3 Bd6 39. f4 Kg7 40. Kc4 Kf8 41. Rg2 Be7 42. Rd2 h4 43. Rd7 f5 44. h3 Kf7 45. Rb7 e5 {[#]} (45... Kf6 $16) 46. Kd5 $1 $18 ({But not} 46. fxe5 $6 Ke6 $16) 46... exf4 47. exf4 Kf6 48. Rb6+ Kf7 49. Ke5 Ra7 50. Kxf5 Bd8 51. Rh6 Kg7 52. Rg6+ Kf8 53. Rc6 Rf7+ 54. Ke4 {[%emt 1:48:00]} Re7+ {[%emt 2:25:21] [#]} 55. Kd5 $1 {[%emt 0:00:30]} Re3 $2 {[%emt 0:00:30]} (55... Kg7 56. f5 (56. Kxc5 Re3 $11) 56... Re3) 56. Re6 {[%emt 0:00:30]} ({Weaker is} 56. Kxc5 Rxh3 57. Kd4 Ra3 $11) 1-0

[Event "Czech Extraliga 2024-25"]
[Site "Czechia"]
[Date "2024.11.02"]
[Round "1.5"]
[White "Polak, Tomas"]
[Black "Seidl, Jan"]
[Result "1/2-1/2"]
[ECO "D40"]
[WhiteElo "2470"]
[BlackElo "2247"]
[Annotator "TA"]
[PlyCount "42"]
[EventDate "2024.09.12"]
[EventType "team-tourn"]
[EventCountry "CZE"]
[SourceTitle "playchess.com"]
[Source "ChessBase"]
[SourceQuality "1"]
[TimeControl "40/5400+30:1800+30"]

{[%evp 24,42,0,-43,-14,-50,-32,-47,0,0,0,0,0,0,0,0,0,0,0,0,12]} 1. Nf3 {[%emt 0:00:04]} Nf6 {[%emt 0:00:58]} 2. c4 {[%emt 0:00:09]} e6 {[%emt 0:00:11]} 3. Nc3 {[%emt 0:00:37]} d5 {[%emt 0:00:09]} 4. e3 {[%emt 0:00:26]} Be7 {[%emt 0:00:31]} 5. d4 {[%emt 0:02:30]} O-O {[%emt 0:08:09]} 6. Bd3 {[%emt 0:00:54]} dxc4 {[%emt 0:01:16]} 7. Bxc4 {[%emt 0:00:06]} c5 {[%emt 0:00:24]} 8. O-O {[%emt 0:00:18]} Nc6 {[%emt 0:02:54]} 9. a3 {[%emt 0:00:30]} cxd4 {[%emt 0:00:19]} 10. exd4 {[%emt 0:00:06]} a6 {[%emt 0:01:12]} 11. Re1 {[%emt 0:20:45]} b5 {[%emt 0:10:29]} 12. Ba2 {[%emt 0:00:58]} Bb7 {[%emt 0:02:15]} 13. Bg5 {[%emt 0:08:18]} b4 {[%emt 0:08:18]} 14. Na4 {[%emt 0:06:54]} bxa3 {[%emt 0:01:52]} 15. bxa3 {[%emt 0:00:07]} Na5 {[%emt 0:07:11]} (15... Bxa3 $15 16. Bb1 Bb4) 16. Ne5 $11 {[%emt 0:14:24] The position is equal.} Bd5 {[%emt 0:07:37]} 17. Bxf6 {[%emt 0:04:46]} Bxf6 {[%emt 0:00:15]} 18. Bxd5 {[%emt 0:00:18]} exd5 {[%emt 0:00:12]} 19. Nc5 {[%emt 0:00:23] Black must now prevent Ned7.} Re8 {[%emt 0:00:16]} 20. Rc1 {[%emt 0:11:10]} Nc4 {[%emt 0:03:36]} 21. Nxc4 {[%emt 0:08:37] A dynamic duo of knights.} Rxe1+ {[%emt 0:00:50] Weighted Error Value: White=0.10 (very precise) /Black=0.08 (flawless) .  Mistake:       	---       	Black=1      Inaccurate:     	White=1     	---        OK:         	White=3     	Black=4      Best:        	---       	Black=1} 1/2-1/2

[Event "Czech Extraliga 2024-25"]
[Site "Czechia"]
[Date "2024.11.02"]
[Round "1.5"]
[White "Rubes, Jan"]
[Black "Vyprachticky, David"]
[Result "1-0"]
[ECO "C55"]
[WhiteElo "2446"]
[BlackElo "2356"]
[Annotator "TA"]
[PlyCount "131"]
[EventDate "2024.09.12"]
[EventType "team-tourn"]
[EventCountry "CZE"]
[SourceTitle "playchess.com"]
[Source "ChessBase"]
[SourceQuality "1"]
[TimeControl "40/5400+30:1800+30"]

{[%evp 13,131,30,46,0,17,0,0,0,34,0,21,15,18,21,146,13,13,-8,0,-15,-10,-20,-12,-19,-15,-53,-19,-54,0,-3,0,0,0,0,14,26,22,31,139,136,181,152,175,139,202,132,301,250,165,175,164,143,153,155,158,161,144,123,364,347,313,339,651,298,346,283,294,246,264,265,261,255,250,270,254,262,260,254,253,255,470,431,509,494,565,563,571,289,289,133,128,129,144,146,149,147,347,342,1032,1004,1812,1891,2422,1934,29983,29984,29985,29986,29986,29987,29989,29990,29990,0,29988,29989,29989,29990,29990,29991]} 1. e4 {[%emt 0:00:02]} e5 {[%emt 0:02:18]} 2. Nf3 {[%emt 0:00:15]} Nc6 {[%emt 0:00:08]} 3. Bc4 {[%emt 0:00:11]} Nf6 {[%emt 0:00:21]} 4. d3 {[%emt 0:00:10]} Be7 {[%emt 0:00:07]} 5. O-O {[%emt 0:00:21]} O-O {[%emt 0:00:06]} 6. a4 {[%emt 0:00:04]} d5 {[%emt 0:00:49]} 7. exd5 {[%emt 0:00:09]} Nxd5 {[%emt 0:00:06]} 8. Nbd2 {[%emt 0:01:21]} Bg4 {[%emt 0:01:15]} 9. h3 {[%emt 0:03:04]} Bh5 {[%emt 0:00:05]} 10. Re1 {[%emt 0:00:10] The position is equal.} Kh8 {[%emt 0:03:33]} 11. c3 {[%emt 0:29:40]} (11. g4 $5 Bg6 $8 12. Nxe5 $14) 11... f6 {[%emt 0:10:35]} 12. a5 {[%emt 0:03:05] next Qb3 is good for White.} a6 {[%emt 0:06:17]} 13. Ne4 {[%emt 0:03:44]} Qd7 {[%emt 0:01:37]} (13... Bf7 $11) 14. Ng3 {[%emt 0:00:15]} (14. Nxe5 $1 $16 Nxe5 15. Qxh5) 14... Bf7 $11 {[%emt 0:02:03]} 15. Qb3 {[%emt 0:06:02]} Bc5 {[%emt 0:05:18]} 16. Ne4 {[%emt 0:00:21]} (16. Qxb7 $2 Rfb8 17. Bxa6 Rxb7 18. Bxb7 Rb8 $19 (18... Rxa5 $2 19. Bxc6 Bxf2+ 20. Kxf2 $19)) 16... Ba7 {[%emt 0:04:44]} 17. Bd2 {[%emt 0:02:59]} Bg8 {[%emt 0:04:03]} 18. Qa3 {[%emt 0:03:47]} Rae8 {[%emt 0:07:55]} 19. Rad1 {[%emt 0:07:27]} f5 {[%emt 0:11:33]} 20. Nc5 {[%emt 0:02:28]} Qd6 {[%emt 0:05:10]} 21. b4 {[%emt 0:02:12] [#]} e4 $1 {[%emt 0:01:37]} 22. dxe4 {[%emt 0:03:31]} fxe4 {[%emt 0:00:56]} 23. Rxe4 {[%emt 0:04:31]} Rxe4 {[%emt 0:00:23]} (23... Ne3 $5 24. fxe3 (24. Bxe3 $2 Qxd1+ 25. Bf1 Rxe4 $19) 24... Bxc4 25. Rxc4 Rxf3 $11) 24. Nxe4 {[%emt 0:00:06]} Qg6 {[%emt 0:00:04][%csl LRe4,LRf3]} 25. Neg5 {[%emt 0:00:24] Strongly threatening b5.} Rf6 {[%emt 0:17:24]} ({Better is} 25... Rd8 $1 $14) 26. Qb3 {[%emt 0:02:43]} Nce7 {[%emt 0:01:15]} 27. Qb1 {[%emt 0:02:52]} h6 {[%emt 0:03:33]} 28. Qxg6 {[%emt 0:03:32]} Rxg6 {[%emt 0:00:00]} (28... Nxg6 $16 29. Ne4 Rf8) 29. Ne4 {[%emt 0:02:56]} Nxc3 $2 {[%emt 0:00:00]} (29... Re6 $16 {keeps fighting.}) 30. Bxc3 $18 {[%emt 0:01:19]} Bxc4 {[%emt 0:00:00]} 31. Rd7 $1 $36 {[%emt 0:02:50][%mdl 2048] White is in control.} Re6 {[%emt 0:05:41]} 32. Nc5 {[%emt 0:06:23]} Bxc5 {[%emt 0:00:17]} 33. bxc5 {[%emt 0:00:02]} Kg8 {[%emt 0:02:30]} 34. Rxc7 {[%emt 0:00:59] White is more active.} Bd5 {[%emt 0:02:30]} 35. Ne5 {[%emt 0:00:33]} Nf5 $2 {[%emt 0:02:32]} (35... Ng6 $16 36. Rd7 Nxe5 37. Rxd5 Nc6) 36. g4 {[%emt 0:01:20]} Nh4 {[%emt 0:00:23][%cal Oe6e5]} 37. f4 {[%emt 0:01:39]} g5 $2 {[%emt 0:00:26]} (37... Nf3+ 38. Nxf3 Re3) 38. fxg5 {[%emt 0:02:30]} (38. Rc8+ $142 Kh7 39. Nd7) 38... hxg5 {[%emt 0:00:54][%cal Oe6e5]} 39. Nd7 {[%emt 0:01:25]} Bc6 {[%emt 0:00:53]} 40. Nf6+ {[%emt 0:00:34]} Kf8 {[%emt 0:00:05]} 41. Kf2 {[%emt 0:31:06] Dodges Re2+. Black must now prevent Nh7+.} Bb5 {[%emt 0:02:07]} 42. Nh7+ {[%emt 0:00:00]} (42. Rxb7 Re2+ 43. Kf1 (43. Kg1 $2 Nf3+ 44. Kf1 Bc4 $19) 43... Bd3 44. Nd7+ Ke8 45. Nf6+ Kf8 46. Nh7+ Ke8 47. Nf6+ (47. Nxg5 $2 Rb2+ 48. Ke1 Rxb7 $19) 47... Kf8 $11) 42... Ke8 {[%emt 0:00:31] ( -> ...Re2+)} 43. Nxg5 {[%emt 0:00:00]} ({Weaker is} 43. Rxb7 Re2+ 44. Kf1 Rb2+ 45. Rxb5 (45. Kg1 $2 Nf3+ 46. Kh1 Rh2#) 45... Rxb5 $11) 43... Re2+ {[%emt 0:00:17]} 44. Kg3 {[%emt 0:00:00]} Ng6 {[%emt 0:00:21]} 45. Rg7 {[%emt 0:00:00]} ({Not} 45. Rxb7 Re3+ 46. Kh2 Rxc3 $17) 45... Re3+ {[%emt 0:01:52]} 46. Kf2 $1 {[%emt 0:00:00]} Re2+ $2 {[%emt 0:01:16]} (46... Rxc3 47. Rxg6 Rxc5 48. Rg8+ Kd7 49. Rg7+ Kc6) 47. Kf3 {[%emt 0:00:00]} Nh4+ {[%emt 0:00:14]} 48. Kg3 {[%emt 0:00:00]} Ng2 {[%emt 0:00:31]} 49. Bd4 {[%emt 0:00:00] Inhibits Re3+.} Bc6 {[%emt 0:00:57]} 50. Nf3 {[%emt 0:00:00]} Ne3 {[%emt 0:01:45]} 51. Ne5 {[%emt 0:00:00]} (51. Rg8+ $18 {has better winning chances.} Ke7 52. Rg6) 51... Nf5+ $16 {[%emt 0:00:43]} 52. gxf5 {[%emt 0:00:00]} Rg2+ {[%emt 0:00:03]} 53. Kf4 {[%emt 0:00:00] Threatening mate with Nxc6.} Rxg7 {[%emt 0:00:09][%mdl 4096] Endgame. [#] KRB-KBN} 54. Ng4 $1 {[%emt 0:00:17]} ({Reject} 54. Nxc6 Rd7 $11) 54... Re7 {[%emt 0:00:41] [#]} (54... Rf7 $16 {might work better.}) 55. Be5 $1 $18 {[%emt 0:00:03] aiming for h4.} Bg2 $2 {[%emt 0:01:49]} (55... Rf7 56. h4 Bb5) 56. h4 {[%emt 0:00:15][%cal Bh3h4,Bh4h5,Bh5h6][%mdl 32]} Bh3 {[%emt 0:00:38]} 57. Nf6+ {[%emt 0:01:02]} Kf7 {[%emt 0:00:24]} 58. h5 {[%emt 0:00:12]} b5 {[%emt 0:03:44]} 59. cxb6 {[%emt 0:00:43]} Rb7 {[%emt 0:00:12]} 60. Ne4 {[%emt 0:00:08]} Kg8 {[%emt 0:00:42]} 61. h6 {[%emt 0:00:31]} Rf7 {[%emt 0:00:38]} 62. Nf6+ {[%emt 0:00:17]} Kh8 {[%emt 0:00:18]} 63. Ne4+ {[%emt 0:00:59]} Kg8 {[%emt 0:00:11]} 64. f6 {[%emt 0:00:33][%cal Bf5f6,Bf6f7][%mdl 32] White mates.} Bg2 {[%emt 0:00:53]} 65. Ng5 {[%emt 0:00:11]} Rd7 {[%emt 0:00:35]} 66. f7+ {[%emt 0:00:13] Weighted Error Value: White=0.37/Black=0.42.  Loses game:     	---       	Black=3      Mistake:       	White=3     	Black=6      Inaccurate:     	White=4     	Black=3      OK:         	White=17    	Black=19     Best:        	White=6     	Black=9      Strong:       	White=3     	---} 1-0